[Event "*** Titled Tuesday Blitz"]
[Site "Chess.com"]
[Date "2020.05.19"]
[Round "5"]
[White "Storchnoi"]
[Black "pavelalexandru07"]
[Result "1-0"]
[WhiteElo "1945"]
[BlackElo "2205"]
[TimeControl "180+1"]
[EndTime "12:56:50 PDT"]
[Termination "Storchnoi won on time"]

1. d4 {[%clk 0:03:00.9]} 1... Nf6 {[%clk 0:02:59.4]} 2. c4 {[%clk 0:03:01.1]}
2... c5 {[%clk 0:02:59.3]} 3. d5 {[%clk 0:03:00.7]} 3... e6 {[%clk 0:02:59.3]}
4. Nc3 {[%clk 0:03:00.2]} 4... exd5 {[%clk 0:02:59.4]} 5. cxd5 {[%clk
0:03:01.1]} 5... d6 {[%clk 0:02:59.8]} 6. e4 {[%clk 0:03:01.4]} 6... g6 {[%clk
0:03:00.1]} 7. Nf3 {[%clk 0:03:01.6]} 7... a6 {[%clk 0:02:58.9]} 8. a4 {[%clk
0:03:00.5]} 8... Bg4 {[%clk 0:02:51.7]} 9. Be2 {[%clk 0:02:59.9]} 9... Bxf3
{[%clk 0:02:51.6]} 10. Bxf3 {[%clk 0:02:59.5]} 10... Bg7 {[%clk 0:02:51.7]} 11.
O-O {[%clk 0:02:58.7]} 11... O-O {[%clk 0:02:51.6]} 12. Bg5 {[%clk 0:02:58.5]}
12... Nbd7 {[%clk 0:02:50.4]} 13. Qd2 {[%clk 0:02:58.3]} 13... Re8 {[%clk
0:02:48.6]} 14. Rfe1 {[%clk 0:02:53.5]} 14... Qa5 {[%clk 0:02:38.5]} 15. Bh6
{[%clk 0:02:44.7]} 15... Bh8 {[%clk 0:02:35.8]} 16. Bf4 {[%clk 0:02:42.8]} 16...
Ne5 {[%clk 0:02:31.3]} 17. Be2 {[%clk 0:02:43.1]} 17... Rac8 {[%clk 0:02:26.8]}
18. h3 {[%clk 0:02:35.8]} 18... c4 {[%clk 0:01:58.9]} 19. Bg5 {[%clk 0:02:34.8]}
19... Nfd7 {[%clk 0:01:36.8]} 20. f4 {[%clk 0:02:26.2]} 20... Nd3 {[%clk
0:01:36.4]} 21. Bxd3 {[%clk 0:02:25.5]} 21... cxd3 {[%clk 0:01:37.3]} 22. Qxd3
{[%clk 0:02:23.4]} 22... Nc5 {[%clk 0:01:37.5]} 23. Qf3 {[%clk 0:02:11.4]} 23...
Qb4 {[%clk 0:01:34.5]} 24. Rab1 {[%clk 0:01:56.4]} 24... Nb3 {[%clk 0:01:29.5]}
25. f5 {[%clk 0:01:54.4]} 25... Qd4+ {[%clk 0:00:33.2]} 26. Kh1 {[%clk
0:01:53.1]} 26... Nd2 {[%clk 0:00:33.1]} 27. Bxd2 {[%clk 0:01:44.9]} 27... Qxd2
{[%clk 0:00:34]} 28. Rf1 {[%clk 0:01:40.9]} 28... Rf8 {[%clk 0:00:33.1]} 29. Ne2
{[%clk 0:01:27.5]} 29... Be5 {[%clk 0:00:32.1]} 30. h4 {[%clk 0:01:10.9]} 30...
Rc2 {[%clk 0:00:31.4]} 31. Ng3 {[%clk 0:01:08.4]} 31... Rxb2 {[%clk 0:00:11.2]}
32. Rxb2 {[%clk 0:01:06.7]} 32... Qxb2 {[%clk 0:00:12.1]} 33. fxg6 {[%clk
0:01:06.7]} 33... hxg6 {[%clk 0:00:12]} 34. h5 {[%clk 0:01:06.3]} 34... Bg7
{[%clk 0:00:12.1]} 35. Qf4 {[%clk 0:01:00.5]} 35... Qe5 {[%clk 0:00:11.5]} 36.
Qf3 {[%clk 0:01:00]} 36... Qd4 {[%clk 0:00:09.7]} 37. Qf4 {[%clk 0:00:56.4]}
37... Qe5 {[%clk 0:00:09.2]} 38. Qf3 {[%clk 0:00:56.7]} 38... b5 {[%clk
0:00:05.7]} 39. axb5 {[%clk 0:00:56.1]} 39... axb5 {[%clk 0:00:06.6]} 40. Qe3
{[%clk 0:00:56]} 40... b4 {[%clk 0:00:05]} 41. Kh2 {[%clk 0:00:55.6]} 41... Rb8
{[%clk 0:00:02.4]} 42. Kh3 {[%clk 0:00:54.1]} 42... b3 {[%clk 0:00:02.2]} 43.
Qf3 {[%clk 0:00:54.1]} 43... Rf8 {[%clk 0:00:01.1]} 44. Qxb3 {[%clk 0:00:52.8]}
1-0

[Event "*** Titled Tuesday Blitz"]
[Site "Chess.com"]
[Date "2020.05.19"]
[Round "5"]
[White "gena217"]
[Black "Korona_91"]
[Result "1-0"]
[WhiteElo "2863"]
[BlackElo "2541"]
[TimeControl "180+1"]
[EndTime "12:56:51 PDT"]
[Termination "gena217 won by resignation"]

1. e4 {[%clk 0:03:00.9]} 1... e6 {[%clk 0:02:58.4]} 2. d4 {[%clk 0:03:00.9]}
2... d5 {[%clk 0:02:58.9]} 3. Nd2 {[%clk 0:03:01.5]} 3... a6 {[%clk 0:02:59]} 4.
Ngf3 {[%clk 0:03:01.4]} 4... c5 {[%clk 0:02:57.8]} 5. dxc5 {[%clk 0:03:00]} 5...
Bxc5 {[%clk 0:02:57.7]} 6. exd5 {[%clk 0:03:00.6]} 6... exd5 {[%clk 0:02:57.7]}
7. Nb3 {[%clk 0:02:59.6]} 7... Bb6 {[%clk 0:02:57.9]} 8. Bd3 {[%clk 0:02:59.2]}
8... Qe7+ {[%clk 0:02:54.5]} 9. Qe2 {[%clk 0:02:54.4]} 9... Bg4 {[%clk 0:02:54]}
10. Qxe7+ {[%clk 0:02:40.3]} 10... Nxe7 {[%clk 0:02:54.7]} 11. Ne5 {[%clk
0:02:41]} 11... Bf5 {[%clk 0:02:52.3]} 12. O-O {[%clk 0:02:34.9]} 12... f6
{[%clk 0:02:50.4]} 13. Bxf5 {[%clk 0:02:31.4]} 13... Nxf5 {[%clk 0:02:49.9]} 14.
Nd3 {[%clk 0:02:32]} 14... Nc6 {[%clk 0:02:48.8]} 15. Nf4 {[%clk 0:02:22.8]}
15... O-O-O {[%clk 0:02:46.1]} 16. Rd1 {[%clk 0:02:15.3]} 16... Rhe8 {[%clk
0:02:37.2]} 17. Kf1 {[%clk 0:02:15.1]} 17... d4 {[%clk 0:02:32.6]} 18. Bd2
{[%clk 0:02:11.4]} 18... Ne5 {[%clk 0:02:10.3]} 19. Ba5 {[%clk 0:02:01.5]} 19...
Bxa5 {[%clk 0:02:02.9]} 20. Nxa5 {[%clk 0:02:02.4]} 20... g5 {[%clk 0:01:48]}
21. Nh5 {[%clk 0:01:57.6]} 21... Re6 {[%clk 0:01:45.2]} 22. Re1 {[%clk
0:01:50.5]} 22... Rde8 {[%clk 0:01:35.8]} 23. Nb3 {[%clk 0:01:47.6]} 23... Nc4
{[%clk 0:01:33.9]} 24. Nxf6 {[%clk 0:01:27.7]} 24... Nfe3+ {[%clk 0:01:28.7]}
25. Kg1 {[%clk 0:01:22.6]} 25... Rxf6 {[%clk 0:01:27.5]} 26. Nxd4 {[%clk
0:01:22]} 26... Ref8 {[%clk 0:01:17.5]} 27. fxe3 {[%clk 0:01:16.8]} 27... Nxb2
{[%clk 0:01:16.6]} 28. e4 {[%clk 0:01:05.5]} 28... Nc4 {[%clk 0:01:01.6]} 29. e5
{[%clk 0:01:04.9]} 29... R6f7 {[%clk 0:00:58.1]} 30. e6 {[%clk 0:01:04.2]} 30...
Re7 {[%clk 0:00:56.1]} 31. Rad1 {[%clk 0:01:04.6]} 31... Rfe8 {[%clk 0:00:48.8]}
32. Kf2 {[%clk 0:00:48.5]} 32... Nb6 {[%clk 0:00:41.5]} 33. Nf5 {[%clk 0:00:41]}
33... Rf8 {[%clk 0:00:31.2]} 34. g4 {[%clk 0:00:40.6]} 34... Rc7 {[%clk
0:00:30.4]} 35. e7 {[%clk 0:00:38.6]} 35... Rxc2+ {[%clk 0:00:28.3]} 36. Kg1
{[%clk 0:00:35.4]} 36... Re8 {[%clk 0:00:26.9]} 37. Nd6+ {[%clk 0:00:34.8]} 1-0

[Event "*** Titled Tuesday Blitz"]
[Site "Chess.com"]
[Date "2020.05.19"]
[Round "5"]
[White "MilanJeremic"]
[Black "Crazy_girl99"]
[Result "1-0"]
[WhiteElo "2294"]
[BlackElo "2422"]
[TimeControl "180+1"]
[EndTime "12:56:52 PDT"]
[Termination "MilanJeremic won by resignation"]

1. d4 {[%clk 0:03:00.9]} 1... d5 {[%clk 0:02:57.8]} 2. Nf3 {[%clk 0:03:00.1]}
2... Nf6 {[%clk 0:02:56.4]} 3. g3 {[%clk 0:03:00.1]} 3... g6 {[%clk 0:02:55.6]}
4. Bg2 {[%clk 0:03:00.1]} 4... Bg7 {[%clk 0:02:56.1]} 5. O-O {[%clk 0:03:00]}
5... O-O {[%clk 0:02:56.7]} 6. b3 {[%clk 0:02:59.7]} 6... Bf5 {[%clk 0:02:52.8]}
7. Bb2 {[%clk 0:02:59.3]} 7... c6 {[%clk 0:02:52.2]} 8. c4 {[%clk 0:02:59.1]}
8... Ne4 {[%clk 0:02:51.9]} 9. Nc3 {[%clk 0:02:58.3]} 9... Nd7 {[%clk
0:02:46.8]} 10. e3 {[%clk 0:02:58.1]} 10... a6 {[%clk 0:02:43.2]} 11. cxd5
{[%clk 0:02:57.5]} 11... Nxc3 {[%clk 0:02:42.4]} 12. Bxc3 {[%clk 0:02:57.4]}
12... cxd5 {[%clk 0:02:42.9]} 13. Rc1 {[%clk 0:02:56.8]} 13... Rc8 {[%clk
0:02:41.2]} 14. h4 {[%clk 0:02:43.6]} 14... b5 {[%clk 0:02:22.2]} 15. Qd2 {[%clk
0:02:41.1]} 15... Qb6 {[%clk 0:02:19.5]} 16. Ba5 {[%clk 0:02:39.6]} 16... Qb7
{[%clk 0:02:19.4]} 17. Bb4 {[%clk 0:02:37.7]} 17... Bf6 {[%clk 0:02:17.2]} 18.
Rxc8 {[%clk 0:02:32]} 18... Rxc8 {[%clk 0:02:16.4]} 19. Rc1 {[%clk 0:02:31.8]}
19... h5 {[%clk 0:02:12.8]} 20. Ng5 {[%clk 0:02:24.8]} 20... e6 {[%clk
0:02:06.7]} 21. Bf1 {[%clk 0:02:07.6]} 21... Bd8 {[%clk 0:02:04.2]} 22. Nh3
{[%clk 0:01:46.5]} 22... Nf6 {[%clk 0:02:01.3]} 23. Bg2 {[%clk 0:01:42.4]} 23...
a5 {[%clk 0:01:16.5]} 24. Bc5 {[%clk 0:01:40.9]} 24... Bxh3 {[%clk 0:01:01.5]}
25. Bxh3 {[%clk 0:01:39.1]} 25... Ne4 {[%clk 0:01:02.1]} 26. Qc2 {[%clk
0:01:28.8]} 26... Be7 {[%clk 0:00:53.9]} 27. f3 {[%clk 0:01:21]} 27... Nxc5
{[%clk 0:00:49.8]} 28. Bxe6 {[%clk 0:01:18]} 28... fxe6 {[%clk 0:00:35.9]} 29.
Qxg6+ {[%clk 0:01:16.8]} 29... Kf8 {[%clk 0:00:36.1]} 30. Qh6+ {[%clk
0:01:13.9]} 30... Ke8 {[%clk 0:00:34]} 31. dxc5 {[%clk 0:01:12.8]} 31... Kd7
{[%clk 0:00:21.6]} 32. e4 {[%clk 0:01:09.6]} 32... Bxc5+ {[%clk 0:00:18.7]} 33.
Kg2 {[%clk 0:01:09.3]} 33... Be7 {[%clk 0:00:18.2]} 34. Rd1 {[%clk 0:01:01.9]}
34... Rc2+ {[%clk 0:00:17.5]} 35. Kh3 {[%clk 0:01:01.3]} 35... Qc6 {[%clk
0:00:15.3]} 36. exd5 {[%clk 0:01:00.2]} 36... exd5 {[%clk 0:00:15.2]} 37. Qxh5
{[%clk 0:00:58.9]} 37... Qe6+ {[%clk 0:00:15.7]} 38. g4 {[%clk 0:00:57.6]} 38...
Bd6 {[%clk 0:00:15.9]} 39. Qh7+ {[%clk 0:00:55.9]} 39... Be7 {[%clk 0:00:09]}
40. Qxc2 {[%clk 0:00:55.2]} 40... Qf6 {[%clk 0:00:09.5]} 41. Rxd5+ {[%clk
0:00:53.2]} 41... Ke8 {[%clk 0:00:10.1]} 42. Qd3 {[%clk 0:00:51.6]} 42... Qxh4+
{[%clk 0:00:08.8]} 43. Kg2 {[%clk 0:00:50.4]} 43... Qh6 {[%clk 0:00:08.5]} 44.
Qxb5+ {[%clk 0:00:49.7]} 44... Kf7 {[%clk 0:00:07.7]} 45. Rf5+ {[%clk
0:00:49.5]} 45... Kg7 {[%clk 0:00:08]} 46. Qe5+ {[%clk 0:00:48.8]} 46... Bf6
{[%clk 0:00:07.6]} 47. Qxf6+ {[%clk 0:00:48.9]} 47... Qxf6 {[%clk 0:00:07.9]}
48. Rxf6 {[%clk 0:00:49]} 48... Kxf6 {[%clk 0:00:08.8]} 49. f4 {[%clk
0:00:49.3]} 1-0

[Event "*** Titled Tuesday Blitz"]
[Site "Chess.com"]
[Date "2020.05.19"]
[Round "5"]
[White "wanyaland"]
[Black "dougie47"]
[Result "1-0"]
[WhiteElo "2335"]
[BlackElo "2155"]
[TimeControl "180+1"]
[EndTime "12:56:52 PDT"]
[Termination "wanyaland won on time"]

1. d4 {[%clk 0:02:59.2]} 1... Nf6 {[%clk 0:02:59]} 2. c4 {[%clk 0:02:58.6]} 2...
e6 {[%clk 0:02:59.3]} 3. Nc3 {[%clk 0:02:58.1]} 3... Bb4 {[%clk 0:02:58.6]} 4.
Qc2 {[%clk 0:02:58.3]} 4... d5 {[%clk 0:02:58.3]} 5. Nf3 {[%clk 0:02:56.5]} 5...
O-O {[%clk 0:02:51.3]} 6. Bg5 {[%clk 0:02:53.3]} 6... c5 {[%clk 0:02:48.1]} 7.
dxc5 {[%clk 0:02:51.3]} 7... d4 {[%clk 0:02:44.5]} 8. Rd1 {[%clk 0:02:45.7]}
8... Nc6 {[%clk 0:02:38.4]} 9. e3 {[%clk 0:02:39.3]} 9... e5 {[%clk 0:02:32.5]}
10. a3 {[%clk 0:02:32]} 10... Bxc5 {[%clk 0:02:08.7]} 11. b4 {[%clk 0:02:26.6]}
11... Nxb4 {[%clk 0:01:40]} 12. axb4 {[%clk 0:02:27.5]} 12... Bxb4 {[%clk
0:01:40.9]} 13. exd4 {[%clk 0:02:22.4]} 13... exd4 {[%clk 0:01:41.8]} 14. Rxd4
{[%clk 0:02:20.2]} 14... Qa5 {[%clk 0:01:28.8]} 15. Bd2 {[%clk 0:02:20]} 15...
Qa1+ {[%clk 0:01:12.4]} 16. Nd1 {[%clk 0:02:13.8]} 16... Bg4 {[%clk 0:00:31.1]}
17. Rf4 {[%clk 0:01:21.2]} 17... Rfe8+ {[%clk 0:00:18.7]} 18. Be2 {[%clk
0:01:19.6]} 18... Bxd2+ {[%clk 0:00:16.6]} 19. Qxd2 {[%clk 0:01:07.8]} 19...
Rad8 {[%clk 0:00:16.3]} 20. Qc2 {[%clk 0:01:06]} 20... Bxf3 {[%clk 0:00:14.7]}
21. Rxf3 {[%clk 0:00:58.4]} 21... Qa5+ {[%clk 0:00:14.1]} 22. Qc3 {[%clk
0:00:51.4]} 22... Rxe2+ {[%clk 0:00:09.6]} 23. Kxe2 {[%clk 0:00:45.9]} 23...
Qa2+ {[%clk 0:00:08.2]} 24. Nb2 {[%clk 0:00:33.7]} 24... Ne4 {[%clk 0:00:06]}
25. Qa3 {[%clk 0:00:24.1]} 25... Qxa3 {[%clk 0:00:01.3]} 26. Rxa3 {[%clk
0:00:22.9]} 26... Rd2+ {[%clk 0:00:02.2]} 27. Ke3 {[%clk 0:00:23.1]} 27... Rxb2
{[%clk 0:00:02.5]} 28. Kxe4 {[%clk 0:00:23]} 28... f5+ {[%clk 0:00:01.7]} 29.
Kf3 {[%clk 0:00:22.3]} 1-0

[Event "*** Titled Tuesday Blitz"]
[Site "Chess.com"]
[Date "2020.05.19"]
[Round "5"]
[White "Mikhail_Golubev"]
[Black "Gloomy_Wanderer"]
[Result "0-1"]
[WhiteElo "2557"]
[BlackElo "2759"]
[TimeControl "180+1"]
[EndTime "12:56:53 PDT"]
[Termination "Gloomy_Wanderer won on time"]

1. e4 {[%clk 0:03:00.9]} 1... c5 {[%clk 0:02:59.5]} 2. Nf3 {[%clk 0:03:00.2]}
2... a6 {[%clk 0:02:59.5]} 3. Nc3 {[%clk 0:02:58.4]} 3... e6 {[%clk 0:02:58.8]}
4. d4 {[%clk 0:02:58.4]} 4... b5 {[%clk 0:02:58.1]} 5. d5 {[%clk 0:02:51.9]}
5... d6 {[%clk 0:02:58.2]} 6. dxe6 {[%clk 0:02:47.1]} 6... fxe6 {[%clk
0:02:59.1]} 7. a4 {[%clk 0:02:32]} 7... b4 {[%clk 0:02:58.4]} 8. Ne2 {[%clk
0:02:31.9]} 8... Nc6 {[%clk 0:02:54.8]} 9. Nf4 {[%clk 0:02:23.2]} 9... g5 {[%clk
0:02:36.2]} 10. Nxg5 {[%clk 0:01:56]} 10... Qxg5 {[%clk 0:02:27.1]} 11. Nxe6
{[%clk 0:01:26.7]} 11... Qe7 {[%clk 0:01:53.3]} 12. Qh5+ {[%clk 0:01:25.6]}
12... Kd7 {[%clk 0:01:52.6]} 13. Bc4 {[%clk 0:01:16.1]} 13... Ne5 {[%clk
0:01:26.3]} 14. Bd5 {[%clk 0:01:04.6]} 14... Nf6 {[%clk 0:01:16.2]} 15. Qf5
{[%clk 0:00:45]} 15... Nxd5 {[%clk 0:00:55.7]} 16. exd5 {[%clk 0:00:38.2]} 16...
Ke8 {[%clk 0:00:49.8]} 17. Bg5 {[%clk 0:00:34.2]} 17... Qf7 {[%clk 0:00:33.8]}
18. Qf6 {[%clk 0:00:14.2]} 18... Qxf6 {[%clk 0:00:29.7]} 19. Bxf6 {[%clk
0:00:13.8]} 19... Bxe6 {[%clk 0:00:29.5]} 20. Bxh8 {[%clk 0:00:13.2]} 20... Bxd5
{[%clk 0:00:29.8]} 21. O-O {[%clk 0:00:12.1]} 21... Ng6 {[%clk 0:00:23.1]} 22.
Bf6 {[%clk 0:00:10.6]} 22... Kf7 {[%clk 0:00:23.4]} 23. Bg5 {[%clk 0:00:09.5]}
23... Bg7 {[%clk 0:00:23.8]} 24. Rad1 {[%clk 0:00:06.5]} 24... Bc4 {[%clk
0:00:23.8]} 25. Rfe1 {[%clk 0:00:06.7]} 25... Bd4 {[%clk 0:00:20.9]} 26. b3
{[%clk 0:00:05]} 26... Be6 {[%clk 0:00:20.8]} 27. Be3 {[%clk 0:00:02.3]} 27...
Bxe3 {[%clk 0:00:21.2]} 28. Rxe3 {[%clk 0:00:01.9]} 28... d5 {[%clk 0:00:21.7]}
29. Rf3+ {[%clk 0:00:01.4]} 29... Kg7 {[%clk 0:00:22.1]} 30. Re1 {[%clk
0:00:01.5]} 30... Bf7 {[%clk 0:00:21.2]} 31. Rfe3 {[%clk 0:00:01.1]} 31... a5
{[%clk 0:00:20.3]} 0-1

[Event "*** Titled Tuesday Blitz"]
[Site "Chess.com"]
[Date "2020.05.19"]
[Round "5"]
[White "Stronger1799"]
[Black "BernardoRoselli"]
[Result "0-1"]
[WhiteElo "2300"]
[BlackElo "2456"]
[TimeControl "180+1"]
[EndTime "12:56:55 PDT"]
[Termination "BernardoRoselli won by resignation"]

1. e4 {[%clk 0:02:40.8]} 1... c5 {[%clk 0:02:59.2]} 2. Nf3 {[%clk 0:02:40.6]}
2... e6 {[%clk 0:02:58.6]} 3. d4 {[%clk 0:02:41.1]} 3... cxd4 {[%clk 0:02:56.3]}
4. Nxd4 {[%clk 0:02:42]} 4... Nf6 {[%clk 0:02:56.3]} 5. Nc3 {[%clk 0:02:39.1]}
5... Nc6 {[%clk 0:02:56.7]} 6. Ndb5 {[%clk 0:02:38.8]} 6... Bb4 {[%clk
0:02:56.4]} 7. a3 {[%clk 0:02:38.8]} 7... Bxc3+ {[%clk 0:02:56.9]} 8. Nxc3
{[%clk 0:02:39.7]} 8... d5 {[%clk 0:02:57.3]} 9. exd5 {[%clk 0:02:40.3]} 9...
exd5 {[%clk 0:02:57.8]} 10. Bd3 {[%clk 0:02:40.2]} 10... O-O {[%clk 0:02:57.1]}
11. O-O {[%clk 0:02:39.4]} 11... d4 {[%clk 0:02:57.5]} 12. Ne2 {[%clk
0:02:39.1]} 12... Re8 {[%clk 0:02:57.7]} 13. h3 {[%clk 0:02:23.4]} 13... h6
{[%clk 0:02:56.6]} 14. Ng3 {[%clk 0:02:14.4]} 14... Qd5 {[%clk 0:02:54.7]} 15.
b4 {[%clk 0:02:09.6]} 15... Be6 {[%clk 0:02:46.8]} 16. Bb2 {[%clk 0:02:08.5]}
16... Rad8 {[%clk 0:02:46.5]} 17. Qd2 {[%clk 0:02:07.4]} 17... Ne5 {[%clk
0:02:46.2]} 18. Rad1 {[%clk 0:02:00.1]} 18... Bxh3 {[%clk 0:02:43.5]} 19. f3
{[%clk 0:01:19.8]} 19... Bd7 {[%clk 0:02:18]} 20. Be2 {[%clk 0:01:11.4]} 20...
Nc4 {[%clk 0:02:11.4]} 21. Qxd4 {[%clk 0:00:50.5]} 21... Qxd4+ {[%clk 0:02:04]}
22. Bxd4 {[%clk 0:00:45.1]} 22... Ne3 {[%clk 0:02:03]} 23. Bxe3 {[%clk
0:00:40.1]} 23... Rxe3 {[%clk 0:02:03.6]} 24. Bd3 {[%clk 0:00:37.1]} 24... Rde8
{[%clk 0:01:59.3]} 25. Kf2 {[%clk 0:00:35.5]} 25... R3e5 {[%clk 0:01:56.9]} 26.
Rfe1 {[%clk 0:00:34.2]} 26... h5 {[%clk 0:01:56.3]} 27. Rxe5 {[%clk 0:00:32.1]}
27... Rxe5 {[%clk 0:01:56.4]} 28. c4 {[%clk 0:00:31.4]} 28... h4 {[%clk
0:01:55.4]} 29. Ne4 {[%clk 0:00:27]} 29... Nh5 {[%clk 0:01:47.3]} 30. Nc5 {[%clk
0:00:03.2]} 30... Bc6 {[%clk 0:01:42.6]} 31. Be4 {[%clk 0:00:03.6]} 31... Bxe4
{[%clk 0:01:38]} 32. Rd8+ {[%clk 0:00:04.2]} 32... Kh7 {[%clk 0:01:37.3]} 33.
Nxe4 {[%clk 0:00:04.9]} 33... Nf4 {[%clk 0:01:35.1]} 34. Rd7 {[%clk 0:00:04.4]}
34... f5 {[%clk 0:01:30.7]} 35. Ng5+ {[%clk 0:00:02.3]} 35... Kg6 {[%clk
0:01:28.2]} 36. Nf7 {[%clk 0:00:02.1]} 36... Re2+ {[%clk 0:01:27.7]} 37. Kf1
{[%clk 0:00:02.2]} 37... Rxg2 {[%clk 0:01:23.6]} 38. Rxb7 {[%clk 0:00:02.3]}
38... Rc2 {[%clk 0:01:18]} 39. Ne5+ {[%clk 0:00:02.9]} 39... Kf6 {[%clk
0:01:16.9]} 40. Nd7+ {[%clk 0:00:02.6]} 40... Kg5 {[%clk 0:01:16.8]} 41. Nc5
{[%clk 0:00:02.3]} 41... g6 {[%clk 0:01:14.8]} 42. Rh7 {[%clk 0:00:02]} 42... h3
{[%clk 0:01:14.4]} 43. Nd7 {[%clk 0:00:01.6]} 43... Rxc4 {[%clk 0:01:13]} 44.
Ne5 {[%clk 0:00:01.6]} 44... Rc1+ {[%clk 0:01:08.6]} 45. Kf2 {[%clk 0:00:02]}
45... Rc2+ {[%clk 0:01:08.6]} 46. Ke3 {[%clk 0:00:02.4]} 46... Re2+ {[%clk
0:01:08]} 47. Kd4 {[%clk 0:00:03]} 47... h2 {[%clk 0:01:07.3]} 48. Nf7+ {[%clk
0:00:02.3]} 48... Kf6 {[%clk 0:01:07.1]} 49. Nd6 {[%clk 0:00:02.7]} 49... Nh5
{[%clk 0:01:06]} 50. Ne8+ {[%clk 0:00:01.6]} 50... Rxe8 {[%clk 0:01:05.3]} 0-1

[Event "*** Titled Tuesday Blitz"]
[Site "Chess.com"]
[Date "2020.05.19"]
[Round "5"]
[White "ValeriyGrinev"]
[Black "zmeeed67"]
[Result "0-1"]
[WhiteElo "2538"]
[BlackElo "2410"]
[TimeControl "180+1"]
[EndTime "12:56:58 PDT"]
[Termination "zmeeed67 won by checkmate"]

1. c4 {[%clk 0:03:00.9]} 1... c6 {[%clk 0:02:59.5]} 2. e4 {[%clk 0:02:58.6]}
2... d5 {[%clk 0:03:00.4]} 3. exd5 {[%clk 0:02:58.8]} 3... cxd5 {[%clk
0:03:01.3]} 4. d4 {[%clk 0:02:59.4]} 4... Nf6 {[%clk 0:03:00.2]} 5. Nc3 {[%clk
0:02:58.9]} 5... Nc6 {[%clk 0:02:58.6]} 6. Nf3 {[%clk 0:02:58.2]} 6... e6 {[%clk
0:02:54.9]} 7. c5 {[%clk 0:02:57.5]} 7... Bd7 {[%clk 0:02:44.8]} 8. Rb1 {[%clk
0:02:51.8]} 8... b6 {[%clk 0:02:20.4]} 9. b4 {[%clk 0:02:48.8]} 9... bxc5 {[%clk
0:02:20.6]} 10. dxc5 {[%clk 0:02:42.2]} 10... a6 {[%clk 0:02:18.2]} 11. a4
{[%clk 0:02:34.7]} 11... Nxb4 {[%clk 0:02:10.3]} 12. Rxb4 {[%clk 0:02:32.5]}
12... Bxc5 {[%clk 0:02:10.7]} 13. Rh4 {[%clk 0:02:04.9]} 13... Qb6 {[%clk
0:01:34.4]} 14. Qd2 {[%clk 0:01:37.5]} 14... Rc8 {[%clk 0:01:28.8]} 15. Bd3
{[%clk 0:01:25.3]} 15... Bb4 {[%clk 0:00:46.1]} 16. Bb2 {[%clk 0:01:20.6]} 16...
d4 {[%clk 0:00:28]} 17. Rxd4 {[%clk 0:01:12.9]} 17... Nd5 {[%clk 0:00:27.9]} 18.
Rxb4 {[%clk 0:00:44.8]} 18... Nxb4 {[%clk 0:00:27.9]} 19. Be2 {[%clk 0:00:38.9]}
19... O-O {[%clk 0:00:18]} 20. O-O {[%clk 0:00:25.7]} 20... Rfd8 {[%clk
0:00:17.7]} 21. Qg5 {[%clk 0:00:21.9]} 21... f6 {[%clk 0:00:17.2]} 22. Qg3
{[%clk 0:00:20.9]} 22... e5 {[%clk 0:00:13.7]} 23. Ne4 {[%clk 0:00:20.4]} 23...
Nd5 {[%clk 0:00:11.8]} 24. Ba1 {[%clk 0:00:18.8]} 24... Be6 {[%clk 0:00:11.2]}
25. Rd1 {[%clk 0:00:18]} 25... Nf4 {[%clk 0:00:09.8]} 26. Rxd8+ {[%clk
0:00:15.2]} 26... Rxd8 {[%clk 0:00:10.7]} 27. Bf1 {[%clk 0:00:15.4]} 27... Rd1
{[%clk 0:00:08.7]} 28. Nxf6+ {[%clk 0:00:12.1]} 28... Kh8 {[%clk 0:00:08.7]} 29.
Nd4 {[%clk 0:00:08.6]} 29... Rxf1+ {[%clk 0:00:07.1]} 30. Kxf1 {[%clk
0:00:06.7]} 30... Qb1# {[%clk 0:00:08]} 0-1

[Event "*** Titled Tuesday Blitz"]
[Site "Chess.com"]
[Date "2020.05.19"]
[Round "5"]
[White "Vlad_Lukiianchuk"]
[Black "manmanlai1"]
[Result "1-0"]
[WhiteElo "2518"]
[BlackElo "2356"]
[TimeControl "180+1"]
[EndTime "12:56:59 PDT"]
[Termination "Vlad_Lukiianchuk won by resignation"]

1. b3 {[%clk 0:03:00.9]} 1... e5 {[%clk 0:02:52]} 2. Bb2 {[%clk 0:03:00.6]} 2...
Nc6 {[%clk 0:02:51.5]} 3. e3 {[%clk 0:03:00.4]} 3... a6 {[%clk 0:02:46.1]} 4.
Nf3 {[%clk 0:02:55.6]} 4... d6 {[%clk 0:02:45.8]} 5. d4 {[%clk 0:02:51.2]} 5...
exd4 {[%clk 0:02:44.5]} 6. exd4 {[%clk 0:02:48]} 6... d5 {[%clk 0:02:44]} 7. Bd3
{[%clk 0:02:39.5]} 7... Bb4+ {[%clk 0:02:39.6]} 8. c3 {[%clk 0:02:29.5]} 8...
Bd6 {[%clk 0:02:37.7]} 9. O-O {[%clk 0:02:28.2]} 9... Nge7 {[%clk 0:02:28.3]}
10. Re1 {[%clk 0:02:22.8]} 10... h6 {[%clk 0:02:25.1]} 11. Ne5 {[%clk
0:02:12.3]} 11... Nxe5 {[%clk 0:02:19.6]} 12. dxe5 {[%clk 0:02:10.5]} 12... Bc5
{[%clk 0:02:19.8]} 13. Nd2 {[%clk 0:01:41.2]} 13... Be6 {[%clk 0:02:19.2]} 14.
Nf3 {[%clk 0:01:39.4]} 14... Qd7 {[%clk 0:02:18.9]} 15. Nd4 {[%clk 0:01:38.8]}
15... O-O {[%clk 0:02:07.2]} 16. Qh5 {[%clk 0:01:29.5]} 16... Rfe8 {[%clk
0:01:55.3]} 17. h3 {[%clk 0:01:01.5]} 17... Bxd4 {[%clk 0:01:51.8]} 18. cxd4
{[%clk 0:01:02.4]} 18... Bf5 {[%clk 0:01:47.9]} 19. Be2 {[%clk 0:01:01]} 19...
Bh7 {[%clk 0:01:14.9]} 20. f4 {[%clk 0:00:39.7]} 20... Be4 {[%clk 0:01:13.3]}
21. g4 {[%clk 0:00:38.3]} 21... b6 {[%clk 0:01:11.5]} 22. Rac1 {[%clk
0:00:37.3]} 22... a5 {[%clk 0:01:08.7]} 23. a4 {[%clk 0:00:33]} 23... Rec8
{[%clk 0:01:08.5]} 24. f5 {[%clk 0:00:31.5]} 24... c5 {[%clk 0:00:52.7]} 25. f6
{[%clk 0:00:29.9]} 25... Ng6 {[%clk 0:00:50.8]} 26. fxg7 {[%clk 0:00:26.2]}
26... cxd4 {[%clk 0:00:47.2]} 27. Bxd4 {[%clk 0:00:16.8]} 27... Rxc1 {[%clk
0:00:47.4]} 28. Rxc1 {[%clk 0:00:17.1]} 28... Rc8 {[%clk 0:00:47.8]} 29. Qxh6
{[%clk 0:00:15.6]} 29... Rxc1+ {[%clk 0:00:39.7]} 30. Qxc1 {[%clk 0:00:16.5]}
30... Qe6 {[%clk 0:00:39.6]} 31. Kf2 {[%clk 0:00:13.3]} 31... Kxg7 {[%clk
0:00:35.2]} 32. Qg5 {[%clk 0:00:11.9]} 32... Kg8 {[%clk 0:00:33.2]} 33. Qf6
{[%clk 0:00:10.7]} 33... Qc8 {[%clk 0:00:17.2]} 34. e6 {[%clk 0:00:09]} 1-0